bitfinex-derivatives/quotes_SOLF0:USTF0_20251107
["timestamp","ask_amount","ask_price","bid_price","bid_amount"]
[1762538304734,4.93299327,160.78,160.76,3.06]
[1762538305035,0.04161349,160.79,160.77,8.6615]
[1762538305227,4.93654967,160.78,160.77,8.6615]
[1762538305430,0.04161349,160.79,160.78,3.06]
[1762538305633,0.04161349,160.79,160.75,3.10296132]
[1762538306123,0.04161349,160.79,160.78,3.06]
[1762538306325,5.69120099,160.85,160.78,3.06]
[1762538306525,7.06120099,160.88,160.78,3.06]
[1762538306729,5.69120099,160.87,160.83,3.06]
[1762538307336,5.73066335,160.87,160.83,3.09990862]
[1762538308030,5.73066335,160.87,160.83,8.69940862]
[1762538308943,0.03946236,160.87,160.83,8.69940862]
[1762538309139,5.73066335,160.87,160.83,8.69940862]
[1762538309933,5.73066335,160.87,160.83,3.09990862]
[1762538309934,5.69120099,160.86,160.83,3.09990862]
[1762538310131,5.73066335,160.87,160.83,3.09990862]
[1762538311135,5.73066335,160.87,160.83,0.03990862]
[1762538311334,1.40946236,160.87,160.83,0.03990862]
[1762538312040,1.37,160.85,160.83,0.03990862]
[1762538312828,1.37,160.84,160.83,0.03990862]
[1762538313232,7.06120099,160.84,160.83,0.03990862]
[1762538313432,5.69120099,160.85,160.83,0.03990862]
[1762538313739,5.73066335,160.87,160.83,0.03990862]
[1762538313939,0.03946236,160.87,160.83,3.15990862]
[1762538314141,0.03946236,160.87,160.85,5.5987]
[1762538315042,0.03946236,160.87,160.83,8.75940862]
[1762538315238,0.03946236,160.87,160.84,3.12]
[1762538315943,0.03946236,160.87,160.84,8.7191]
[1762538316942,0.03946236,160.87,160.85,5.5988]
[1762538317339,0.03946236,160.87,160.86,3.12]
[1762538317545,4.95823477,160.87,160.86,3.12]
[1762538317741,0.03946236,160.87,160.86,3.12]
[1762538317942,4.95812785,160.87,160.84,3.12]
[1762538318144,0.03946236,160.87,160.84,3.12]
[1762538318338,0.03946236,160.87,160.85,3.12]
[1762538323742,0.03946236,160.87,160.86,3.09]
[1762538324348,7.05120099,160.97,160.89,3.09]
[1762538324649,4.91656124,160.96,160.89,3.09]
[1762538324849,1.36,160.97,160.89,3.09]
[1762538325055,4.91567662,160.96,160.91,3.09]
[1762538325259,6.9551,160.97,160.91,3.09]
[1762538325452,0.04596484,160.96,160.93,3.09]
[1762538325657,0.04324187,160.96,160.93,3.13469149]
[1762538326850,1.44324187,160.96,160.93,0.04469149]
[1762538327160,4.91542332,160.95,160.93,0.04469149]
[1762538327455,1.4,160.95,160.93,0.04469149]
[1762538328750,1.4,160.93,160.85,3.09]
[1762538329954,0.04664172,160.91,160.87,3.13644432]
[1762538330154,0.0399313,160.91,160.87,3.13644432]
[1762538332252,0.0399313,160.91,160.88,3.09]
[1762538332854,0.0399313,160.91,160.87,0.04644432]
[1762538332855,0.0399313,160.91,160.9,3.09]
[1762538333052,0.0399313,160.91,160.88,3.09]
[1762538333248,0.0399313,160.91,160.87,3.13644432]
[1762538335964,0.0399313,160.91,160.89,3.09]
[1762538337564,0.0399313,160.91,160.9,3.09]
[1762538339064,0.0399313,160.91,160.88,3.09]
[1762538339762,0.0399313,160.91,160.9,3.09]
[1762538341560,1.4,161.0,160.91,3.09]
[1762538341760,5.5942,160.99,160.93,3.09]
[1762538342256,1.4,161.0,160.93,3.09]
[1762538342462,1.4,161.04,160.93,3.09]
[1762538342664,0.04412039,160.98,160.96,3.13]
[1762538342861,0.04543957,160.99,160.97,3.13]
[1762538343068,0.04667707,161.0,160.97,3.13]
[1762538343255,0.04161419,161.0,160.97,3.17402827]
[1762538343458,1.44161419,161.0,160.97,0.04402827]
[1762538344257,0.04161419,161.0,160.97,0.04402827]
[1762538344469,0.04161419,161.0,160.97,3.17402827]
[1762538344868,1.44161419,161.0,160.97,0.04402827]
[1762538345071,0.04161419,161.0,160.97,0.04402827]
[1762538345366,1.44161419,161.0,160.97,0.04402827]
[1762538345565,1.4,160.98,160.89,3.13]
[1762538345759,4.88747443,160.97,160.9,3.13]
[1762538346066,1.4,161.02,160.9,3.13]
[1762538346265,16.58984704,161.06,160.86,8.90237323]
[1762538346266,5.5942,160.99,160.93,3.13]
[1762538346459,0.04415471,160.98,160.94,3.17577437]
[1762538346664,1.4,161.03,160.94,3.17577437]
[1762538346863,0.04369318,160.98,160.97,3.17179022]
[1762538347056,0.03961044,160.99,160.97,3.13]
[1762538347258,1.43961044,160.99,160.96,0.0400995]
[1762538347468,6.9945,160.98,160.96,0.0400995]
[1762538347774,1.43961044,160.99,160.96,0.0400995]
[1762538347962,0.03961044,160.99,160.96,3.1700995]
[1762538348973,7.03381044,160.99,160.96,0.0400995]
[1762538349165,1.4,160.97,160.96,0.0400995]
[1762538349367,6.29833134,160.97,160.96,0.0400995]
[1762538349871,6.29833134,160.97,160.92,3.13]
[1762538350173,4.89833134,160.96,160.92,3.13]
[1762538350375,5.5942,160.99,160.92,3.13]
[1762538350575,6.30044097,160.98,160.85,3.13]
[1762538350773,0.04450579,160.93,160.9,3.17359156]
[1762538351267,1.44450579,160.93,160.9,0.04359156]
[1762538351878,5.64070579,160.93,160.9,0.04359156]
[1762538352972,0.04450579,160.93,160.9,0.04359156]
[1762538353173,1.44450579,160.93,160.9,0.04359156]
[1762538353364,4.90425446,160.92,160.9,3.17359156]
[1762538353569,0.04450579,160.93,160.91,3.13]
[1762538354869,0.04450579,160.93,160.9,0.04359156]
[1762538355069,1.44450579,160.93,160.9,0.04359156]
[1762538355373,4.8568651,160.92,160.9,0.04359156]
[1762538355570,1.44450579,160.93,160.9,0.04359156]
[1762538355767,4.85749952,160.92,160.9,0.04359156]
[1762538355969,7.04070579,160.93,160.9,0.04359156]
[1762538356170,4.85738571,160.92,160.9,0.04359156]
[1762538356363,0.04450579,160.93,160.9,0.04359156]
[1762538356667,0.04450579,160.93,160.9,3.17359156]
[1762538358071,5.69120099,161.02,160.91,3.13]
[1762538358273,4.85769522,161.01,160.92,3.13]
[1762538358472,4.85769522,161.0,160.92,3.13]
[1762538358671,1.4,161.03,160.92,3.13]
[1762538358871,4.85939561,161.02,160.96,8.725]
[1762538359177,6.29971723,161.01,160.97,0.04119509]
[1762538359470,4.85939561,161.0,160.97,0.04119509]
[1762538359670,1.44032162,161.01,160.97,0.04119509]
[1762538359978,4.85919697,161.0,160.97,0.04119509]
[1762538360270,5.69120099,161.09,161.02,5.5928]
[1762538360480,5.69120099,161.11,161.02,3.13]
[1762538360967,5.69120099,161.12,161.04,5.5922]
[1762538361168,0.04752037,161.1,161.06,0.04350859]
[1762538364970,5.63792037,161.1,161.01,5.5933]
[1762538365166,37.56743654,161.15,160.98,3.13]
[1762538365167,5.69120099,161.12,160.98,3.13]
[1762538365485,5.69120099,161.1,160.96,5.78253968]
[1762538365781,5.5915,161.07,160.99,5.5939]
[1762538365977,5.69120099,161.1,160.97,3.13]
[1762538366168,0.04700501,161.05,161.01,0.04407905]
[1762538366479,0.04422873,161.05,161.01,0.04253231]
[1762538366683,0.04422873,161.05,161.01,3.17253231]
[1762538366880,5.69120099,161.15,161.04,5.78253968]
[1762538367181,5.69120099,161.15,161.07,5.5911]
[1762538367182,5.5886,161.15,161.07,5.5911]
[1762538367475,5.69120099,161.13,161.01,8.91253968]
[1762538367675,11.28010099,161.14,161.03,5.5925]
[1762538367875,0.04768353,161.1,161.07,3.17718559]
[1762538368079,11.27780099,161.21,161.12,5.5893]
[1762538368269,11.27780099,161.21,161.15,0.0433986]
[1762538368474,0.04186541,161.18,161.15,0.0433986]
[1762538370278,0.04186541,161.18,161.15,3.1733986]
[1762538370883,0.04186541,161.18,161.16,5.588]
[1762538371084,0.04186541,161.18,161.15,3.1733986]
[1762538371582,0.04186541,161.18,161.17,3.13]
[1762538371773,0.04186541,161.18,161.16,5.588]
[1762538372171,0.04186541,161.18,161.17,3.13]
[1762538372371,0.04186541,161.18,161.15,3.1733986]
[1762538372778,0.04186541,161.18,161.15,0.0433986]
[1762538377676,1.28186541,161.18,161.07,3.13]
[1762538377980,5.5884,161.16,161.07,3.13]
[1762538378178,5.78253968,161.2,161.08,3.13]
[1762538378679,0.04709282,161.16,161.12,0.04187694]
[1762538378880,0.04183428,161.16,161.1,5.59]
[1762538379082,0.04183428,161.16,161.12,0.04277991]
[1762538379883,0.04183428,161.16,161.12,3.17277991]
[1762538380586,0.04183428,161.16,161.12,0.04277991]
[1762538381084,0.04183428,161.16,161.12,2.98277991]
[1762538383193,0.04183428,161.16,161.12,0.04277991]
[1762538384984,0.04183428,161.16,161.12,2.98277991]
[1762538385883,0.04183428,161.16,161.12,8.57217991]
[1762538386086,0.04183428,161.16,161.13,2.94]
[1762538386896,0.04183428,161.16,161.12,0.04277991]
[1762538389199,0.04183428,161.16,161.12,2.98277991]
[1762538389692,0.04183428,161.16,161.12,0.04277991]
[1762538390192,5.5886,161.15,161.12,0.04277991]
[1762538390388,0.04183428,161.16,161.12,0.04277991]
[1762538390594,0.04183428,161.16,161.12,2.98277991]
[1762538390793,0.04183428,161.16,161.12,0.04277991]
[1762538391788,5.589,161.14,161.12,0.04277991]
[1762538395400,5.589,161.14,161.12,2.98277991]
[1762538396101,0.04183428,161.16,161.12,0.04277991]
[1762538396689,5.589,161.14,161.12,0.04277991]
[1762538401207,4.70070731,161.13,161.12,0.04277991]
[1762538401506,4.70070731,161.13,161.06,2.94]
[1762538401700,5.69120099,161.15,161.06,2.94]
[1762538401701,4.70070731,161.12,161.06,2.94]
[1762538402004,5.69120099,161.17,161.06,2.94]
[1762538402201,10.39892436,161.16,161.06,2.94]
[1762538402503,5.63594081,161.13,161.09,3.17108301]
[1762538402897,4.7144065,161.12,161.09,0.04108301]
[1762538403200,0.04664081,161.13,161.09,3.17108301]
[1762538404308,4.72215271,161.12,161.09,3.17108301]
[1762538404501,0.04664081,161.13,161.09,3.17108301]
[1762538404698,4.72250913,161.12,161.09,3.17108301]
[1762538404907,0.04664081,161.13,161.09,3.17108301]
[1762538405297,0.04664081,161.13,161.09,4.41108301]
[1762538405599,0.04664081,161.13,161.12,3.13]
[1762538406408,5.69120099,161.18,161.12,4.37]
[1762538406600,4.7691179,161.17,161.12,3.13]
[1762538406801,4.7691179,161.16,161.12,3.13]
[1762538407003,4.7691179,161.15,161.12,3.13]
[1762538407307,5.69120099,161.18,161.12,3.13]
[1762538407501,10.40333859,161.17,161.13,3.17359508]
[1762538407700,4.76955779,161.16,161.13,3.17359508]
[1762538407901,4.76955779,161.15,161.13,3.17359508]
[1762538408102,5.6337808,161.17,161.13,3.17359508]
[1762538408404,10.35781165,161.16,161.13,0.04359508]
[1762538408601,4.76951165,161.15,161.13,0.04359508]
[1762538408807,4.76951165,161.14,161.13,0.04359508]
[1762538409405,4.76951165,161.14,161.13,3.17359508]
[1762538409604,5.6337808,161.17,161.13,3.17359508]
[1762538409799,4.77177382,161.16,161.13,3.17359508]
[1762538409998,0.0456808,161.17,161.13,3.17359508]
[1762538410199,4.77153425,161.16,161.13,3.17359508]
[1762538410407,0.0456808,161.17,161.13,3.17359508]
[1762538410603,4.77375895,161.16,161.13,3.17359508]
[1762538410808,5.6336808,161.17,161.13,3.17359508]
[1762538411004,4.77394823,161.16,161.13,0.04359508]
[1762538411205,4.77394823,161.15,161.13,0.04359508]
[1762538411401,10.36284823,161.14,161.13,0.04359508]
[1762538412208,4.77394823,161.14,161.13,3.17359508]
[1762538412401,4.77394823,161.14,161.13,0.04359508]
[1762538413003,4.77394823,161.14,161.13,3.17359508]
[1762538413398,4.77394823,161.14,161.13,0.04359508]
[1762538414305,4.77394823,161.14,161.13,3.17359508]
[1762538414503,0.0456808,161.17,161.13,3.17359508]
[1762538414701,4.78018358,161.16,161.13,3.17359508]
[1762538414902,0.0456808,161.17,161.13,3.17359508]
[1762538415208,0.0456808,161.17,161.16,3.13]
[1762538418309,0.0456808,161.17,161.13,3.17359508]
[1762538419010,0.0456808,161.17,161.13,0.04359508]
[1762538419206,0.0456808,161.17,161.13,3.17359508]
[1762538419707,0.0456808,161.17,161.16,3.13]
[1762538420911,5.69120099,161.25,161.16,9.9579]
[1762538421105,4.77477161,161.24,161.17,3.13]
[1762538421303,4.77477161,161.23,161.17,3.13]
[1762538421604,5.69120099,161.27,161.17,3.13]
[1762538421806,0.04531238,161.24,161.2,0.04378269]
[1762538422006,4.77200715,161.23,161.2,3.17378269]
[1762538422210,0.04531238,161.24,161.2,3.17378269]
[1762538422914,0.04531238,161.24,161.2,0.04378269]
[1762538423216,0.04531238,161.24,161.2,3.17378269]
[1762538426717,0.04531238,161.24,161.2,8.76038269]
[1762538426918,0.04531238,161.24,161.21,3.13]
[1762538429414,0.04531238,161.24,161.2,3.17378269]
[1762538429914,5.63081238,161.24,161.2,3.17378269]
[1762538430514,0.04531238,161.24,161.2,3.17378269]
[1762538431311,0.04531238,161.24,161.2,0.04378269]
[1762538431918,5.5862,161.22,161.2,0.04378269]
[1762538432414,5.5866,161.21,161.14,5.5887]
[1762538432610,5.69120099,161.25,161.14,2.99]
[1762538432814,4.75414964,161.24,161.14,2.99]
[1762538433119,8.84451776,161.22,161.03,2.99]
[1762538433316,5.69120099,161.2,161.03,2.99]
[1762538433520,5.63493771,161.13,161.1,0.04675757]
[1762538433818,0.04114413,161.13,161.1,0.04563076]
[1762538434224,5.5898,161.12,161.1,0.04563076]
[1762538435016,4.84981937,161.11,161.1,0.04563076]
[1762538435320,4.84981937,161.11,161.02,2.99]
[1762538435513,8.84451776,161.14,161.02,2.99]
[1762538435715,4.84810603,161.13,161.02,2.99]
[1762538435916,5.69120099,161.19,161.05,2.99]
[1762538436113,0.04466573,161.14,161.1,0.04003707]
[1762538436418,0.04466573,161.14,161.1,0.04232585]
[1762538436618,5.63376573,161.14,161.1,0.04232585]
[1762538436921,4.84718071,161.13,161.1,0.04232585]
[1762538437127,4.84757442,161.12,161.1,0.04232585]
[1762538437322,0.04466573,161.14,161.1,0.04232585]
[1762538437720,4.84736692,161.13,161.1,0.04232585]
[1762538438025,4.84755867,161.12,161.01,2.99]
[1762538438222,8.84451776,161.17,161.01,2.99]
[1762538438223,5.69120099,161.15,161.01,2.99]
[1762538438423,5.5894,161.13,161.01,2.99]
[1762538438621,8.84451776,161.17,161.04,2.99]
[1762538438822,4.84621177,161.16,161.04,2.99]
[1762538439129,0.04192147,161.12,161.08,0.04503537]
[1762538439324,0.04192147,161.12,161.05,2.99]
[1762538439620,0.04192147,161.12,161.06,0.03916974]
[1762538439824,0.04192147,161.12,161.08,2.99]
[1762538440424,0.04192147,161.12,161.09,3.17]
[1762538441630,0.04192147,161.12,161.09,8.7604]
[1762538441820,0.04192147,161.12,161.1,3.17]
[1762538444423,0.04192147,161.12,161.09,0.04356362]
[1762538445226,5.5902,161.11,161.09,0.04356362]
[1762538446231,6.8302,161.11,161.09,0.04356362]
[1762538446428,5.5909,161.09,161.02,3.17]
[1762538446934,14.53571875,161.13,160.98,3.17]
[1762538447230,5.69120099,161.11,160.98,3.17]
[1762538447423,4.84775438,161.12,161.03,3.21392446]
[1762538447424,0.04704304,161.06,161.03,3.21392446]
[1762538447728,0.04704304,161.06,161.03,0.04648867]
[1762538447729,0.04694042,161.06,161.03,0.04648867]
[1762538448927,5.5922,161.05,161.03,0.04648867]
[1762538449332,1.24,161.05,160.95,3.17]
[1762538449628,5.5931,161.02,160.95,3.17]
[1762538449833,4.84125713,161.06,160.95,3.17]
[1762538450032,4.84125713,161.05,160.95,3.17]
[1762538450322,0.04016521,161.02,160.98,0.04674516]
[1762538450522,0.04016521,161.02,160.98,3.21674516]
[1762538451539,8.84451776,161.13,161.0,3.17]
[1762538451724,4.8340701,161.12,161.0,3.17]
[1762538451928,4.8340701,161.11,161.0,3.17]
[1762538452130,4.83399302,161.1,161.0,3.17]
[1762538452331,5.69120099,161.14,161.0,3.17]
[1762538452531,4.83272467,161.13,161.0,3.17]
[1762538452732,0.04675147,161.09,161.05,0.04781787]
[1762538452932,5.63765147,161.09,161.05,0.04781787]
[1762538453934,5.5912,161.08,161.05,0.04781787]
[1762538454137,0.04675147,161.09,161.05,0.04781787]
[1762538454539,5.5915,161.07,161.05,0.04781787]
[1762538454740,0.04675147,161.09,161.05,3.21781787]
[1762538455740,5.5912,161.08,161.05,0.04781787]
[1762538456242,0.04675147,161.09,161.05,0.04781787]
[1762538456438,5.5916,161.07,161.05,0.04781787]
[1762538457842,5.5932,161.02,160.96,3.17]
[1762538458041,4.82849612,161.05,160.96,3.17]
[1762538458341,14.53571875,161.09,160.96,3.17]
[1762538458649,5.5932,161.02,160.96,3.17]
[1762538458839,0.04169937,161.01,160.96,3.17]
[1762538459042,0.04169937,161.01,160.97,3.21522235]
[1762538459246,0.04223085,161.01,160.97,3.21721388]
[1762538460551,0.00223085,161.01,160.97,3.21721388]
[1762538460757,4.86228003,161.11,160.98,3.17]
[1762538460954,5.5904,161.1,161.02,3.17]
[1762538461562,5.5907,161.09,161.02,3.17]
[1762538461753,0.04350342,161.08,161.05,3.17]
[1762538462454,4.82086812,161.17,161.05,1.24]
[1762538462756,0.08,161.19,161.06,3.06]
[1762538462946,4.90038551,161.18,161.06,3.06]
[1762538463142,4.90038551,161.18,161.05,8.84451776]
[1762538463143,4.82043224,161.17,161.07,3.06]
[1762538463345,0.12711428,161.14,161.1,0.04416416]
[1762538463548,0.08,161.13,161.1,0.0406409]
[1762538463948,0.12244799,161.14,161.1,0.0406409]
[1762538464250,0.08,161.13,161.1,0.0406409]
[1762538464652,0.08,161.11,161.1,0.0406409]
[1762538464854,5.5897,161.12,161.1,0.0406409]
[1762538465054,0.08,161.13,161.1,0.0406409]
[1762538465259,5.6697,161.12,161.1,0.0406409]
[1762538465460,0.08,161.11,161.1,0.0406409]
[1762538466356,4.94354296,161.11,161.02,3.06]
[1762538466547,0.08,161.1,161.02,3.06]
[1762538466755,0.08,161.14,161.02,3.06]
[1762538467062,5.5907,161.09,161.02,8.6528]
[1762538467260,0.08,161.12,161.02,3.06]
[1762538467457,5.71815698,161.07,161.04,0.04318749]
[1762538467763,0.08,161.06,161.04,0.04399474]
[1762538467966,5.6718,161.06,161.04,0.04399474]
[1762538468158,5.5918,161.06,161.04,0.04399474]
[1762538468660,5.6718,161.06,161.04,0.04399474]
[1762538469062,5.5931,161.02,160.93,3.06]
[1762538469269,0.08,161.04,160.93,3.06]
[1762538469472,0.08,161.02,160.93,3.06]
[1762538469763,0.08,161.06,160.93,3.06]
[1762538469959,4.94922681,161.05,160.95,3.06]
[1762538470156,0.04461997,161.02,160.98,0.03971165]
[1762538470364,0.08,161.02,160.98,0.03971165]
[1762538470564,0.12276958,161.02,160.98,0.03971165]
[1762538470966,5.5938,161.0,160.98,0.03971165]
[1762538471168,0.04276958,161.02,160.98,3.09971165]
[1762538471365,5.5935,161.01,160.98,0.03971165]
[1762538471566,0.04276958,161.02,160.98,0.03971165]
[1762538471961,0.04276958,161.02,160.98,3.09971165]
[1762538473064,4.87487872,161.09,161.0,3.06]
[1762538473370,4.87487872,161.08,161.0,3.06]
[1762538473668,0.08,161.1,161.0,3.06]
[1762538473863,4.87800186,161.09,161.0,3.06]
[1762538474169,0.04169281,161.06,161.03,3.1001212]
[1762538474371,0.04226787,161.06,161.03,3.10576398]
[1762538475262,5.69120099,161.16,161.07,3.06]
[1762538475469,4.88515233,161.15,161.07,3.06]
[1762538475666,10.47415233,161.14,161.07,3.06]
[1762538475866,4.88515233,161.13,161.07,3.06]
[1762538476169,0.04517821,161.12,161.08,3.10711691]
[1762538476372,0.04348538,161.12,161.08,3.10711691]
[1762538476571,0.16,161.11,161.08,0.04711691]
[1762538476771,0.16,161.09,161.08,0.04711691]
[1762538477076,5.05017111,161.09,161.08,0.04711691]
[1762538477572,0.04348538,161.12,161.08,0.04711691]
[1762538477766,4.89307755,161.11,161.08,0.04711691]
[1762538477964,4.89307755,161.1,161.08,0.04711691]
[1762538478159,0.04348538,161.12,161.08,0.04711691]
[1762538478363,10.48380533,161.11,161.08,0.04711691]
[1762538478575,0.04348538,161.12,161.08,3.10711691]
[1762538478576,4.89380533,161.1,161.08,3.10711691]
[1762538478774,0.04348538,161.12,161.08,3.10711691]
[1762538479468,4.89339672,161.11,161.08,0.04711691]
[1762538479670,4.89339672,161.1,161.08,0.04711691]
[1762538479868,4.89339672,161.09,161.08,0.04711691]
[1762538480175,4.89339672,161.09,160.99,3.06]
[1762538480361,5.69120099,161.12,160.99,3.06]
[1762538480560,4.89406478,161.11,160.99,3.06]
[1762538480762,4.89406478,161.1,161.04,3.06]
[1762538480966,0.04630797,161.09,161.05,0.03949558]
[1762538481178,0.04630797,161.09,161.06,3.06]
[1762538481673,5.85120099,161.17,161.06,3.06]
[1762538481864,4.89282073,161.16,161.06,3.06]
[1762538482063,4.89282073,161.15,161.06,3.06]
[1762538482277,5.69120099,161.19,161.1,3.06]
[1762538482574,11.53121072,161.23,161.1,3.06]
[1762538482575,5.69120099,161.23,161.1,3.06]
[1762538482778,4.89023521,161.22,161.14,3.06]
[1762538482964,4.89023521,161.21,161.14,3.06]
[1762538483165,4.89023521,161.2,161.14,3.06]
[1762538483377,4.89023521,161.19,161.15,3.06]
[1762538483572,5.69120099,161.23,161.15,3.06]
[1762538483776,0.29709444,161.21,161.17,0.04549704]
[1762538483972,0.25,161.19,161.17,0.04549704]
[1762538484172,4.88731886,161.18,161.17,0.04549704]
[1762538484774,10.47471886,161.18,161.17,0.04549704]
[1762538485077,0.29393814,161.21,161.17,0.04549704]
[1762538485273,10.47288942,161.2,161.17,0.04549704]
[1762538485580,5.5868,161.2,161.17,3.10549704]
[1762538485878,0.04393814,161.21,161.17,3.10549704]
[1762538487280,0.04393814,161.21,161.17,8.69309704]
[1762538487577,0.04393814,161.21,161.18,3.06]
[1762538487781,0.04393814,161.21,161.2,3.06]
[1762538488979,0.25,161.29,161.2,3.06]
[1762538488980,4.87451282,161.28,161.2,3.06]
[1762538489277,5.8338,161.29,161.2,3.06]
[1762538489581,4.86998711,161.28,161.21,5.5863]
[1762538489769,0.25,161.29,161.23,0.04223531]
[1762538489975,0.0466254,161.26,161.23,0.04223531]
[1762538490279,5.5852,161.25,161.23,0.04223531]
[1762538490582,0.3,161.24,161.23,0.04223531]
[1762538491487,5.8852,161.25,161.23,0.04223531]
[1762538492078,5.8856,161.24,161.16,3.06]
[1762538492279,0.3,161.24,161.16,3.06]
[1762538492681,5.5859,161.23,161.16,3.06]
[1762538492877,0.3,161.24,161.16,3.06]
[1762538493074,0.03920112,161.21,161.18,0.04135858]
[1762538493589,0.03920112,161.21,161.18,3.14135858]
[1762538494473,0.03920112,161.21,161.19,3.1]
[1762538498384,0.29,161.33,161.21,3.1]
[1762538498686,11.51081298,161.34,161.21,3.1]
[1762538498687,5.17800616,161.32,161.21,3.1]
[1762538498877,4.88800616,161.31,161.23,3.1]
[1762538499078,0.29,161.32,161.23,3.1]
[1762538499283,0.04543746,161.29,161.26,0.03949304]
[1762538499691,5.62923746,161.29,161.26,0.03949304]
[1762538499874,0.04543746,161.29,161.27,3.1]
[1762538502179,0.29,161.36,161.29,3.11]
[1762538502589,4.87676309,161.35,161.29,3.11]
[1762538502795,0.29,161.36,161.29,8.6935]
[1762538503085,0.04174669,161.34,161.31,3.15591279]
[1762538503284,0.04331097,161.34,161.31,3.15658682]
[1762538504904,0.04331097,161.34,161.33,3.11]
[1762538505077,6.0249566,161.44,161.33,3.11]
[1762538505283,5.5794,161.42,161.35,3.11]
[1762538505475,4.87342797,161.41,161.35,3.11]
[1762538505677,5.5794,161.42,161.35,3.11]
[1762538505882,4.86872732,161.41,161.35,3.11]
[1762538506180,0.29,161.44,161.36,3.15443221]
[1762538506181,0.03956838,161.4,161.36,3.15443221]
[1762538506382,0.04711994,161.4,161.36,3.15443221]
[1762538507195,0.37711994,161.4,161.36,0.04443221]
[1762538507685,0.04711994,161.4,161.36,3.15443221]
[1762538508089,0.04711994,161.4,161.36,0.04443221]
[1762538508288,0.33,161.37,161.36,0.04443221]
[1762538508497,4.85934232,161.37,161.36,0.04443221]
[1762538508996,5.18934232,161.37,161.36,0.04443221]
[1762538509291,4.85934232,161.37,161.36,0.04443221]
[1762538509694,11.73297632,161.4,161.36,0.04443221]
[1762538509882,6.15297632,161.4,161.36,0.04443221]
[1762538510087,4.85705133,161.39,161.36,0.04443221]
[1762538510384,6.15297632,161.4,161.36,0.04443221]
[1762538510588,10.43573126,161.39,161.36,0.04443221]
[1762538510790,5.82297632,161.4,161.36,0.04443221]
[1762538511095,5.82297632,161.4,161.36,3.15443221]
[1762538511303,5.5804,161.39,161.36,0.04443221]
[1762538511488,6.15297632,161.4,161.36,0.04443221]
[1762538511688,4.8535413,161.39,161.36,0.04443221]
[1762538511988,6.15297632,161.4,161.36,0.04443221]
[1762538512185,4.85354045,161.39,161.36,0.04443221]
[1762538512391,5.5807,161.38,161.36,0.04443221]
[1762538514088,11.73297632,161.4,161.36,0.04443221]
[1762538514288,4.85522578,161.39,161.36,0.04443221]
[1762538514498,0.33,161.37,161.36,0.04443221]
[1762538514693,5.18522578,161.37,161.36,0.04443221]
[1762538515205,5.5807,161.38,161.36,0.04443221]
[1762538515392,4.85843359,161.37,161.36,0.04443221]
[1762538516200,5.18843359,161.37,161.36,0.04443221]
[1762538516398,4.85843359,161.37,161.36,0.04443221]
[1762538516796,5.18843359,161.37,161.36,0.04443221]
[1762538516996,4.85843359,161.37,161.36,0.04443221]
[1762538517302,5.18843359,161.37,161.36,0.04443221]
[1762538520301,4.85843359,161.37,161.36,0.04443221]
[1762538520505,5.18843359,161.37,161.36,0.04443221]
[1762538520705,4.85843359,161.37,161.36,0.04443221]
[1762538521000,10.92339019,161.37,161.36,0.04443221]
[1762538521407,5.18843359,161.37,161.36,0.04443221]
[1762538522407,5.18843359,161.37,161.29,3.11]
[1762538522707,4.85843359,161.36,161.29,3.11]
[1762538522905,10.44013359,161.35,161.29,3.11]
[1762538523202,0.04669371,161.34,161.31,3.1]
[1762538524608,0.04669371,161.34,161.33,3.1]
[1762538525196,0.38669371,161.34,161.3,0.04353991]
[1762538525510,0.38669371,161.34,161.19,11.1742]
[1762538525511,0.34,161.32,161.15,5.77585638]
[1762538525692,0.34,161.29,161.19,3.1]
[1762538525897,0.34,161.26,161.15,3.1]
[1762538526297,0.34,161.26,161.15,8.6883]
[1762538526298,5.9248,161.26,161.15,8.6883]
[1762538526495,0.04572465,161.22,161.19,3.14602895]
[1762538526702,0.04572465,161.22,161.19,0.04602895]
[1762538526912,0.04572465,161.22,161.19,3.14602895]
[1762538527498,5.7349566,161.31,161.2,1.24]
[1762538527698,4.70995867,161.3,161.23,3.1]
[1762538527898,0.39,161.35,161.26,3.1]
[1762538528106,4.70930227,161.34,161.26,3.1]
[1762538528304,4.70930227,161.33,161.26,3.1]